fUST/lending_fUST_20250114
["ID","MTS","AMOUNT","RATE_DAILY","PERIOD"]
[348873860,1736842241763,-500.0,0.00021917,3]
[348873861,1736842241772,-501.06454293,0.00021917,3]
[348873862,1736842241781,-500.0,0.00021917,3]
[348873863,1736842241791,-500.0,0.00021917,3]
[348873864,1736842241904,-500.0,0.00021917,3]
[348873865,1736842241915,-500.0,0.00021917,3]
[348873866,1736842241924,-500.0,0.00021917,3]
[348873867,1736842241935,-500.0,0.00021917,3]
[348873868,1736842241945,-500.0,0.00021917,3]
[348873869,1736842241954,-500.0,0.00021917,3]
[348873870,1736842241963,-155.687778,0.00021917,2]
[348873871,1736842241972,-532.14745732,0.00021917,3]
[348873872,1736842241981,-500.0,0.00021917,3]
[348873873,1736842241990,-500.0,0.00021917,3]
[348873874,1736842242000,-500.0,0.00021917,3]
[348873875,1736842242009,-500.0,0.00021917,3]
[348873876,1736842242019,-500.0,0.00021917,3]
[348873877,1736842242028,-1155.63,0.00021917,3]
[348873878,1736842242037,-500.0,0.00021917,3]
[348873879,1736842242047,-500.0,0.00021917,3]
[348873880,1736842242056,-500.0,0.00021917,3]
[348873881,1736842242065,-500.0,0.00021917,3]
[348873882,1736842242075,-539.15,0.00021917,3]
[348873883,1736842242084,-501.37837348,0.00021917,3]
[348873884,1736842242093,-500.0,0.00021917,3]
[348873885,1736842242102,-740.11,0.00021917,3]
[348873886,1736842242111,-628.52,0.00021917,3]
[348873887,1736842242121,-500.0,0.00021917,3]
[348873888,1736842242130,-770.06,0.00021917,3]
[348873889,1736842242140,-500.0,0.00021917,3]
[348873890,1736842242150,-929.88,0.00021917,3]
[348873891,1736842242159,-500.0,0.00021917,3]
[348873892,1736842242168,-500.0,0.00021917,3]
[348873893,1736842242177,-151.0,0.00021917,2]
[348873894,1736842242189,-151.0,0.00021917,2]
[348873895,1736842242199,-500.0,0.00021917,3]
[348873896,1736842242208,-537.03291729,0.00021917,3]
[348873897,1736842242217,-151.0,0.00021917,2]
[348873898,1736842242226,-151.0,0.00021917,2]
[348873899,1736842242235,-221.402207,0.00021917,2]
[348873900,1736842242244,-518.23650419,0.00021917,3]
[348873901,1736842242254,-500.0,0.00021917,3]
[348873902,1736842242262,-500.56967807,0.00021917,3]
[348873903,1736842242272,-500.0,0.00021917,3]
[348873904,1736842242281,-1030.24,0.00021917,3]
[348873905,1736842242290,-500.0,0.00021917,3]
[348873906,1736842242299,-500.0,0.00021917,3]
[348873907,1736842242309,-150.18,0.00021917,2]
[348873908,1736842242318,-150.18,0.00021917,2]
[348873909,1736842242327,-500.0,0.00021917,3]
[348873910,1736842242337,-500.0,0.00021917,3]
[348873911,1736842242347,-500.0,0.00021917,3]
[348873912,1736842242356,-550.1,0.00021917,3]
[348873913,1736842242365,-158.26569056,0.00021917,2]
[348873914,1736842242374,-520.45,0.00021917,3]
[348873915,1736842242383,-326.45440594,0.00021917,3]
[348873916,1736842242392,-500.0,0.00021917,3]
[348873917,1736842242401,-1007.84,0.00021917,3]
[348873918,1736842242410,-500.0,0.00021917,3]
[348873919,1736842242419,-1114.65,0.00021917,3]
[348873920,1736842242428,-500.0,0.00021917,3]
[348873921,1736842242439,-500.0,0.00021917,3]
[348873922,1736842242450,-500.0,0.00021917,3]
[348873923,1736842242458,-500.0,0.00021917,3]
[348873924,1736842242468,-998.62,0.00021917,3]
[348873925,1736842242477,-500.0,0.00021917,3]
[348873926,1736842242486,-501.08038014,0.00021917,3]
[348873927,1736842242495,-500.0,0.00021917,3]
[348873928,1736842242504,-500.0,0.00021917,3]
[348873929,1736842242513,-500.0,0.00021917,3]
[348873930,1736842242522,-500.0,0.00021917,3]
[348873931,1736842242532,-500.0,0.00021917,3]
[348873932,1736842242541,-504.89055847,0.00021917,3]
[348873933,1736842242550,-6669.34,0.00021917,3]
[348873934,1736842242561,-500.0,0.00021917,3]
[348873936,1736842242571,-823.15,0.00021917,3]
[348873937,1736842242580,-500.0,0.00021917,3]
[348873938,1736842242589,-500.0,0.00021917,3]
[348873940,1736842242599,-501.83674099,0.00021917,3]
[348873942,1736842242608,-500.0,0.00021917,3]
[348873943,1736842242617,-152.24689983,0.00021917,3]
[348873944,1736842242627,-500.0,0.00021917,3]
[348873945,1736842242636,-500.0,0.00021917,3]
[348873946,1736842242645,-500.0,0.00021917,3]
[348873947,1736842242654,-500.0,0.00021917,3]
[348873948,1736842242664,-500.0,0.00021917,3]
[348873949,1736842242673,-12760.52,0.00021917,3]
[348873950,1736842242682,-500.0,0.00021917,3]
[348873951,1736842242693,-500.0,0.00021917,3]
[348873952,1736842242701,-500.0,0.00021917,3]
[348873953,1736842242711,-500.0,0.00021917,3]
[348873954,1736842242720,-500.0,0.00021917,3]
[348873955,1736842242729,-500.0,0.00021917,3]
[348873956,1736842242738,-500.0,0.00021917,3]
[348873957,1736842242747,-500.0,0.00021917,3]
[348873958,1736842242755,-500.0,0.00021917,3]
[348873959,1736842242765,-30.73771985,0.00021917,3]
[348873963,1736842243245,-469.26228015,0.00021917,3]
[348873964,1736842243254,-953.23,0.00021917,3]
[348873965,1736842243263,-500.0,0.00021917,3]
[348873966,1736842243272,-512.06,0.00021917,3]
[348873967,1736842243282,-516.67178106,0.00021917,3]
[348873968,1736842243291,-500.0,0.00021917,3]
[348873969,1736842243300,-325.04593879,0.00021917,3]
[348873976,1736842246072,-184.10406121,0.00021917,3]
[348873978,1736842246081,-517.30891959,0.00021917,3]
[348873979,1736842246091,-500.0,0.00021917,3]
[348873980,1736842246100,-500.0,0.00021917,3]
[348873981,1736842246110,-211.4670592,0.00021917,3]
[348873986,1736842480107,165.48056,0.00013973,2]
[348873988,1736842488002,1000.0,0.00025,120]
[348873990,1736842575661,1897.5,0.00024,30]
[348873996,1736843016426,200.0,0.00024,30]
[348873999,1736843225147,-379.34,0.0002082,2]
[348874000,1736843225168,-276.4371515,0.00020872,2]
[348874001,1736843225191,-204.8446495,0.00020893,2]
[348874002,1736843225214,-167.01972189,0.00021772,2]
[348874003,1736843225237,-160.0,0.00021797,3]
[348874004,1736843225259,-444.08152465,0.00021817,2]
[348874005,1736843225282,-182.85142828,0.00021817,2]
[348874006,1736843225305,-395.0,0.00021821,2]
[348874007,1736843225333,-200.0,0.000219,7]
[348874008,1736843225358,-205.0,0.000219,6]
[348874009,1736843225382,-300.0,0.00021913,2]
[348874010,1736843225404,-409.57394243,0.00021913,2]
[348874011,1736843232168,-429.65874801,0.00021913,2]
[348874027,1736843373155,-463.589,0.00019,4]
[348874028,1736843390426,165.48056,0.00013973,2]
[348874129,1736843435271,-688.93248812,0.00019,4]
[348874130,1736843435281,-203.623993,0.00020622,2]
[348874131,1736843435290,-220.9127209,0.00020917,2]
[348874132,1736843435300,-628.67700891,0.00021817,3]
[348874133,1736843435310,-388.57133406,0.00021817,2]
[348874134,1736843435319,-300.0,0.00021915,2]
[348874135,1736843435328,-17095.0,0.00021915,2]
[348874136,1736843435338,-169.73,0.00021916,2]
[348874137,1736843435348,-509.05048318,0.00021916,7]
[348874138,1736843435357,-237.81067573,0.00021916,2]
[348874139,1736843435366,-27003.18741071,0.00021917,5]
[348874140,1736843435375,-2285.26892799,0.00021917,5]
[348874141,1736843435385,-151.0,0.00021917,2]
[348874142,1736843435394,-202.643694,0.00021917,2]
[348874143,1736843435403,-500.0,0.00021917,3]
[348874144,1736843435412,-504.55538727,0.00021917,3]
[348874145,1736843435422,-504.48160459,0.00021917,3]
[348874146,1736843435432,-500.0,0.00021917,3]
[348874147,1736843435442,-500.0,0.00021917,3]
[348874148,1736843435451,-465.26065455,0.00021917,3]
[348874149,1736843435461,-500.0,0.00021917,3]
[348874150,1736843435470,-500.0,0.00021917,3]
[348874151,1736843435480,-502.05637478,0.00021917,3]
[348874152,1736843435490,-500.62849503,0.00021917,3]
[348874153,1736843435500,-500.0,0.00021917,3]
[348874155,1736843435509,-500.0,0.00021917,3]
[348874157,1736843435518,-503.51147914,0.00021917,3]
[348874159,1736843435527,-500.0,0.00021917,3]
[348874161,1736843435536,-500.0,0.00021917,3]
[348874163,1736843435546,-569.58317338,0.00021917,3]
[348874165,1736843435556,-504.11,0.00021917,3]
[348874167,1736843435564,-500.0,0.00021917,3]
[348874169,1736843435573,-500.0,0.00021917,3]
[348874171,1736843435582,-500.0,0.00021917,3]
[348874173,1736843435591,-500.0,0.00021917,3]
[348874174,1736843435600,-502.83199495,0.00021917,3]
[348874176,1736843435610,-500.0,0.00021917,3]
[348874179,1736843435619,-500.0,0.00021917,3]
[348874181,1736843435628,-500.0,0.00021917,3]
[348874183,1736843435638,-500.0,0.00021917,3]
[348874185,1736843435647,-500.0,0.00021917,3]
[348874187,1736843435657,-500.0,0.00021917,3]
[348874188,1736843435666,-500.0,0.00021917,3]
[348874190,1736843435675,-500.0,0.00021917,3]
[348874193,1736843435684,-500.80006492,0.00021917,3]
[348874194,1736843435695,-500.0,0.00021917,3]
[348874200,1736843435853,-511.55006021,0.00021917,3]
[348874201,1736843435866,-500.0,0.00021917,3]
[348874202,1736843435876,-500.0,0.00021917,3]
[348874203,1736843435887,-500.0,0.00021917,3]
[348874204,1736843435896,-1000.0,0.00021917,3]
[348874205,1736843435907,-520.9027451,0.00021917,3]
[348874206,1736843435917,-501.46107822,0.00021917,3]
[348874207,1736843435927,-500.0,0.00021917,3]
[348874208,1736843435936,-151.0,0.00021917,2]
[348874209,1736843435945,-500.0,0.00021917,3]
[348874210,1736843435955,-151.0,0.00021917,2]
[348874211,1736843435964,-500.0,0.00021917,3]
[348874212,1736843435974,-151.0,0.00021917,2]
[348874213,1736843435983,-500.0,0.00021917,3]
[348874214,1736843435994,-151.0,0.00021917,2]
[348874215,1736843436003,-500.0,0.00021917,3]
[348874216,1736843436016,-500.0,0.00021917,3]
[348874217,1736843436025,-608.3069185,0.00021917,3]
[348874218,1736843436035,-500.0,0.00021917,3]
[348874219,1736843436044,-500.0,0.00021917,3]
[348874220,1736843436054,-500.0,0.00021917,3]
[348874221,1736843436066,-516.8972285,0.00021917,3]
[348874222,1736843436075,-500.0,0.00021917,3]
[348874223,1736843436085,-500.0,0.00021917,3]
[348874224,1736843436097,-500.0,0.00021917,3]
[348874225,1736843436107,-500.67921349,0.00021917,3]
[348874226,1736843436116,-500.0,0.00021917,3]
[348874227,1736843436126,-500.0,0.00021917,3]
[348874228,1736843436135,-200.0,0.00021917,3]
[348874229,1736843436146,-500.0,0.00021917,3]
[348874230,1736843436156,-500.0,0.00021917,3]
[348874231,1736843436166,-500.0,0.00021917,3]
[348874232,1736843436176,-500.0,0.00021917,3]
[348874233,1736843436186,-500.0,0.00021917,3]
[348874234,1736843436196,-500.0,0.00021917,3]
[348874235,1736843436205,-500.0,0.00021917,3]
[348874236,1736843436215,-516.23,0.00021917,3]
[348874237,1736843436224,-500.0,0.00021917,3]
[348874238,1736843436234,-500.0,0.00021917,3]
[348874239,1736843436245,-500.0,0.00021917,3]
[348874240,1736843436256,-500.0,0.00021917,3]
[348874241,1736843436266,-500.0,0.00021917,3]
[348874242,1736843436276,-500.0,0.00021917,3]
[348874243,1736843436286,-501.03299085,0.00021917,3]
[348874244,1736843436295,-500.0,0.00021917,3]
[348874245,1736843436304,-623.16,0.00021917,3]
[348874246,1736843436314,-500.0,0.00021917,3]
[348874247,1736843436323,-500.0,0.00021917,3]
[348874248,1736843436333,-500.0,0.00021917,3]
[348874249,1736843436343,-500.0,0.00021917,3]
[348874250,1736843436353,-500.0,0.00021917,3]
[348874251,1736843436362,-500.0,0.00021917,3]
[348874252,1736843436371,-500.0,0.00021917,3]
[348874253,1736843436381,-500.0,0.00021917,3]
[348874254,1736843436390,-537.52,0.00021917,3]
[348874255,1736843436400,-500.0,0.00021917,3]
[348874256,1736843436410,-508.77260806,0.00021917,3]
[348874257,1736843436420,-544.26965202,0.00021917,3]
[348874258,1736843436429,-263.64467198,0.00021917,3]
[348874259,1736843436438,-548.01,0.00021917,3]
[348874260,1736843436448,-204.6799111,0.00021917,3]
[348874261,1736843436457,-500.0,0.00021917,3]
[348874262,1736843436467,-456.38516684,0.00021917,3]
[348874263,1736843436476,-197.97605201,0.00021917,3]
[348874264,1736843436486,-500.0,0.00021917,3]
[348874265,1736843436497,-500.0,0.00021917,3]
[348874266,1736843436507,-503.86838096,0.00021917,3]
[348874267,1736843436516,-500.0,0.00021917,3]
[348874268,1736843436526,-500.0,0.00021917,3]
[348874269,1736843436537,-500.0,0.00021917,3]
[348874270,1736843436547,-500.0,0.00021917,3]
[348874271,1736843436557,-500.0,0.00021917,3]
[348874272,1736843436567,-500.0,0.00021917,3]
[348874273,1736843436577,-500.0,0.00021917,3]
[348874274,1736843436587,-500.0,0.00021917,3]
[348874275,1736843436596,-606.23,0.00021917,3]
[348874276,1736843436606,-500.0,0.00021917,3]
[348874277,1736843436615,-500.0,0.00021917,3]
[348874278,1736843436625,-500.0,0.00021917,3]
[348874279,1736843436636,-500.0,0.00021917,3]
[348874280,1736843436646,-500.0,0.00021917,3]
[348874281,1736843436655,-500.0,0.00021917,3]
[348874282,1736843436665,-500.0,0.00021917,3]
[348874283,1736843436674,-500.0,0.00021917,3]
[348874284,1736843436683,-500.0,0.00021917,3]
[348874285,1736843436692,-500.0,0.00021917,3]
[348874286,1736843436702,-500.0,0.00021917,3]
[348874287,1736843436711,-500.0,0.00021917,3]
[348874288,1736843436721,-500.0,0.00021917,3]
[348874289,1736843436730,-500.0,0.00021917,3]
[348874290,1736843436739,-508.77,0.00021917,3]
[348874291,1736843436749,-151.0,0.00021917,2]
[348874292,1736843436758,-500.0,0.00021917,3]
[348874293,1736843436767,-288.992004,0.00021917,2]
[348874294,1736843436777,-500.0,0.00021917,3]
[348874295,1736843436786,-500.0,0.00021917,3]
[348874296,1736843436796,-500.0,0.00021917,3]
[348874297,1736843436805,-500.0,0.00021917,3]
[348874298,1736843436815,-500.0,0.00021917,3]
[348874299,1736843436824,-500.0,0.00021917,3]
[348874300,1736843436833,-500.0,0.00021917,3]
[348874301,1736843436843,-500.0,0.00021917,3]
[348874302,1736843436853,-500.0,0.00021917,3]
[348874303,1736843436862,-500.0,0.00021917,3]
[348874304,1736843436872,-500.0,0.00021917,3]
[348874305,1736843436881,-500.0,0.00021917,3]
[348874306,1736843436890,-500.0,0.00021917,3]
[348874307,1736843436900,-500.0,0.00021917,3]
[348874308,1736843436910,-500.0,0.00021917,3]
[348874309,1736843436920,-500.0,0.00021917,3]
[348874310,1736843436929,-506.10180094,0.00021917,3]
[348874311,1736843436939,-500.0,0.00021917,3]
[348874312,1736843436948,-500.0,0.00021917,3]
[348874313,1736843436958,-500.0,0.00021917,3]
[348874314,1736843436968,-500.0,0.00021917,3]
[348874315,1736843436977,-500.0,0.00021917,3]
[348874316,1736843436987,-500.0,0.00021917,3]
[348874317,1736843436996,-500.0,0.00021917,3]
[348874318,1736843437006,-655.37,0.00021917,3]
[348874319,1736843437018,-500.0,0.00021917,3]
[348874320,1736843437027,-500.0,0.00021917,3]
[348874321,1736843437037,-1738.47,0.00021917,3]
[348874322,1736843437047,-500.0,0.00021917,3]
[348874323,1736843437056,-500.0,0.00021917,3]
[348874324,1736843437065,-500.0,0.00021917,3]
[348874325,1736843437075,-500.0,0.00021917,3]
[348874326,1736843437087,-151.0,0.00021917,2]
[348874327,1736843437096,-151.0,0.00021917,2]
[348874328,1736843437106,-151.0,0.00021917,2]
[348874329,1736843437116,-500.0,0.00021917,3]
[348874330,1736843437127,-151.0,0.00021917,2]
[348874331,1736843437136,-151.0,0.00021917,2]
[348874332,1736843437146,-500.0,0.00021917,3]
[348874333,1736843437157,-500.0,0.00021917,3]
[348874334,1736843437167,-161.693328,0.00021917,2]
[348874335,1736843437177,-500.0,0.00021917,3]
[348874336,1736843437187,-500.0,0.00021917,3]
[348874337,1736843437198,-500.0,0.00021917,3]
[348874338,1736843437207,-500.0,0.00021917,3]
[348874339,1736843437217,-500.0,0.00021917,3]
[348874340,1736843437226,-504.74027835,0.00021917,3]
[348874341,1736843437236,-500.0,0.00021917,3]
[348874342,1736843437247,-500.0,0.00021917,3]
[348874343,1736843437256,-500.0,0.00021917,3]
[348874344,1736843437265,-500.0,0.00021917,3]
[348874345,1736843437275,-500.0,0.00021917,3]
[348874346,1736843437284,-970.26,0.00021917,3]
[348874347,1736843437293,-503.03861912,0.00021917,3]
[348874348,1736843437303,-500.0,0.00021917,3]
[348874349,1736843437313,-500.0,0.00021917,3]
[348874350,1736843437322,-500.0,0.00021917,3]
[348874351,1736843437332,-500.0,0.00021917,3]
[348874352,1736843437342,-390.58526903,0.00021917,3]
[348874353,1736843437352,-500.0,0.00021917,3]
[348874354,1736843437361,-500.0,0.00021917,3]
[348874355,1736843437371,-500.0,0.00021917,3]
[348874356,1736843437381,-500.0,0.00021917,3]
[348874357,1736843437390,-500.0,0.00021917,3]
[348874358,1736843437399,-807.74,0.00021917,3]
[348874359,1736843437409,-505.33820409,0.00021917,3]
[348874360,1736843437418,-500.0,0.00021917,3]
[348874361,1736843437428,-151.31806658,0.00021917,3]
[348874362,1736843437438,-506.83753552,0.00021917,3]
[348874363,1736843437447,-163.392393,0.00021917,2]
[348874364,1736843437457,-500.0,0.00021917,3]
[348874365,1736843437466,-500.0,0.00021917,3]
[348874366,1736843437476,-500.0,0.00021917,3]
[348874367,1736843437486,-500.0,0.00021917,3]
[348874368,1736843437497,-500.0,0.00021917,3]
[348874370,1736843437506,-512.52,0.00021917,3]
[348874372,1736843437516,-500.0,0.00021917,3]
[348874373,1736843437525,-500.0,0.00021917,3]
[348874374,1736843437534,-506.09213727,0.00021917,3]
[348874375,1736843437544,-500.0,0.00021917,3]
[348874376,1736843437554,-500.0,0.00021917,3]
[348874377,1736843437564,-500.0,0.00021917,3]
[348874378,1736843437574,-500.0,0.00021917,3]
[348874379,1736843437584,-668.78,0.00021917,3]
[348874381,1736843437594,-500.0,0.00021917,3]
[348874383,1736843437604,-500.0,0.00021917,3]
[348874385,1736843437614,-500.0,0.00021917,3]
[348874387,1736843437623,-500.0,0.00021917,3]
[348874389,1736843437633,-500.0,0.00021917,3]
[348874391,1736843437643,-500.0,0.00021917,3]
[348874392,1736843437652,-500.0,0.00021917,3]
[348874393,1736843437662,-500.0,0.00021917,3]
[348874394,1736843437672,-500.0,0.00021917,3]
[348874395,1736843437682,-509.91551421,0.00021917,3]
[348874396,1736843437691,-563.72,0.00021917,3]
[348874397,1736843437701,-659.07,0.00021917,3]
[348874398,1736843437711,-253.03024554,0.00021917,2]
[348874399,1736843437720,-500.0,0.00021917,3]
[348874400,1736843437730,-500.0,0.00021917,3]
[348874401,1736843437740,-1257.01,0.00021917,3]
[348874402,1736843437750,-216.98238637,0.00021917,3]
[348874404,1736843437760,-500.0,0.00021917,3]
[348874406,1736843437770,-554.51578941,0.00021917,3]
[348874407,1736843437780,-500.0,0.00021917,3]
[348874409,1736843437790,-500.0,0.00021917,3]
[348874410,1736843437800,-500.0,0.00021917,2]
[348874411,1736843437809,-590.30599106,0.00021917,3]
[348874412,1736843437819,-500.0,0.00021917,3]
[348874413,1736843437829,-500.0,0.00021917,3]
[348874414,1736843437839,-643.46,0.00021917,3]
[348874415,1736843437849,-500.8267458,0.00021917,3]
[348874416,1736843437859,-720.63,0.00021917,3]
[348874417,1736843437869,-500.0,0.00021917,3]
[348874418,1736843437879,-500.0,0.00021917,3]
[348874419,1736843437888,-500.0,0.00021917,3]
[348874420,1736843437898,-500.0,0.00021917,3]
[348874421,1736843437908,-867.34,0.00021917,3]
[348874422,1736843437917,-500.0,0.00021917,3]
[348874423,1736843437927,-500.72921955,0.00021917,3]
[348874424,1736843437937,-500.0,0.00021917,3]
[348874425,1736843437947,-500.0,0.00021917,3]
[348874426,1736843437957,-504.71537247,0.00021917,3]
[348874427,1736843437967,-500.0,0.00021917,3]
[348874428,1736843437978,-500.0,0.00021917,3]
[348874430,1736843437987,-500.0,0.00021917,3]
[348874432,1736843437998,-151.0,0.00021917,2]
[348874433,1736843438008,-151.0,0.00021917,2]
[348874434,1736843438021,-151.0,0.00021917,2]
[348874435,1736843438031,-500.0,0.00021917,3]
[348874436,1736843438040,-500.0,0.00021917,3]
[348874437,1736843438051,-151.0,0.00021917,2]
[348874438,1736843438061,-151.0,0.00021917,2]
[348874439,1736843438071,-505.89430668,0.00021917,3]
[348874440,1736843438082,-151.0,0.00021917,2]
[348874442,1736843438092,-500.0,0.00021917,3]
[348874443,1736843438102,-151.0,0.00021917,2]
[348874444,1736843438113,-151.0,0.00021917,2]
[348874445,1736843438123,-151.0,0.00021917,2]
[348874446,1736843438133,-549.55,0.00021917,3]
[348874447,1736843438142,-151.0,0.00021917,2]
[348874448,1736843438152,-151.0,0.00021917,2]
[348874449,1736843438162,-151.0,0.00021917,2]
[348874450,1736843438172,-500.0,0.00021917,3]
[348874451,1736843438182,-500.0,0.00021917,3]
[348874452,1736843438192,-831.74,0.00021917,3]
[348874453,1736843438202,-500.0,0.00021917,3]
[348874454,1736843438212,-500.0,0.00021917,3]
[348874455,1736843438221,-1045.69,0.00021917,3]
[348874456,1736843438231,-500.0,0.00021917,3]
[348874457,1736843438241,-500.0,0.00021917,3]
[348874458,1736843438251,-500.0,0.00021917,3]
[348874459,1736843438260,-500.0,0.00021917,3]
[348874460,1736843438271,-1221.43,0.00021917,3]
[348874461,1736843438281,-500.0,0.00021917,3]
[348874462,1736843438290,-500.0,0.00021917,3]
[348874463,1736843438300,-500.0,0.00021917,3]
[348874464,1736843438310,-500.0,0.00021917,3]
[348874465,1736843438320,-500.0,0.00021917,3]
[348874466,1736843438329,-500.0,0.00021917,3]
[348874467,1736843438339,-500.0,0.00021917,3]
[348874468,1736843438349,-500.0,0.00021917,3]
[348874469,1736843438358,-566.54467622,0.00021917,3]
[348874470,1736843438368,-500.0,0.00021917,3]
[348874471,1736843438378,-500.0,0.00021917,3]
[348874472,1736843438387,-500.0,0.00021917,3]
[348874473,1736843438397,-500.0,0.00021917,3]
[348874474,1736843438407,-500.0,0.00021917,3]
[348874475,1736843438416,-737.98,0.00021917,3]
[348874476,1736843438426,-500.0,0.00021917,3]
[348874477,1736843438435,-9470.86,0.00021917,3]
[348874479,1736843438445,-1165.26,0.00021917,3]
[348874480,1736843438563,-500.0,0.00021917,3]
[348874481,1736843438623,-500.0,0.00021917,3]
[348874482,1736843438634,-911.97,0.00021917,3]
[348874483,1736843438644,-500.0,0.00021917,3]
[348874484,1736843438653,-500.0,0.00021917,3]
[348874485,1736843438663,-505.88797372,0.00021917,3]
[348874486,1736843438673,-500.0,0.00021917,3]
[348874487,1736843438683,-500.0,0.00021917,3]
[348874488,1736843438693,-500.0,0.00021917,3]
[348874489,1736843438703,-504.29965701,0.00021917,3]
[348874490,1736843438712,-500.0,0.00021917,3]
[348874491,1736843438722,-1011.77,0.00021917,3]
[348874492,1736843438731,-500.0,0.00021917,3]
[348874493,1736843438741,-500.0,0.00021917,3]
[348874494,1736843438750,-500.0,0.00021917,3]
[348874495,1736843438759,-1000.27,0.00021917,3]
[348874496,1736843438769,-500.0,0.00021917,3]
[348874497,1736843438778,-500.0,0.00021917,3]
[348874498,1736843438788,-443.42631474,0.00021917,3]
[348874499,1736843438797,-500.0,0.00021917,3]
[348874500,1736843438807,-500.0,0.00021917,3]
[348874501,1736843438816,-500.0,0.00021917,3]
[348874502,1736843438825,-500.0,0.00021917,3]
[348874503,1736843438834,-500.0,0.00021917,3]
[348874504,1736843438844,-519.6,0.00021917,3]
[348874505,1736843438854,-500.0,0.00021917,3]
[348874506,1736843438864,-500.0,0.00021917,3]
[348874507,1736843438873,-500.0,0.00021917,3]
[348874508,1736843438883,-500.0,0.00021917,3]
[348874509,1736843438892,-1089.04,0.00021917,3]
[348874510,1736843438902,-500.0,0.00021917,3]
[348874511,1736843438911,-500.0,0.00021917,3]
[348874512,1736843438921,-500.0,0.00021917,3]
[348874513,1736843438930,-825.84,0.00021917,3]
[348874514,1736843438939,-500.0,0.00021917,3]
[348874515,1736843438949,-500.0,0.00021917,3]
[348874516,1736843438959,-500.0,0.00021917,3]
[348874517,1736843438969,-506.55,0.00021917,3]
[348874518,1736843438978,-627.02653352,0.00021917,3]
[348874519,1736843438989,-500.0,0.00021917,3]
[348874520,1736843438999,-500.0,0.00021917,3]
[348874521,1736843439011,-500.0,0.00021917,3]
[348874522,1736843439022,-500.0,0.00021917,3]
[348874523,1736843439032,-500.0,0.00021917,3]
[348874524,1736843439043,-500.0,0.00021917,3]
[348874525,1736843439053,-500.0,0.00021917,3]
[348874526,1736843439063,-511.56,0.00021917,3]
[348874527,1736843439072,-954.31,0.00021917,3]
[348874528,1736843439082,-500.0,0.00021917,3]
[348874529,1736843439093,-500.0,0.00021917,3]
[348874530,1736843439103,-500.0,0.00021917,3]
[348874531,1736843439112,-500.0,0.00021917,3]
[348874532,1736843439122,-500.0,0.00021917,3]
[348874533,1736843439132,-500.0,0.00021917,3]
[348874534,1736843439142,-500.0,0.00021917,3]
[348874535,1736843439152,-502.18297636,0.00021917,3]
[348874536,1736843439161,-500.0,0.00021917,3]
[348874537,1736843439171,-500.35429927,0.00021917,3]
[348874538,1736843439181,-500.0,0.00021917,3]
[348874539,1736843439191,-955.17,0.00021917,3]
[348874540,1736843439201,-846.2,0.00021917,3]